bitfinex/quotes_ETHUSD_20250215
["timestamp","ask_amount","ask_price","bid_price","bid_amount"]
[1739652394144,5.1808,2683.7,2683.5,3.72645]
[1739652394314,5.1808,2683.7,2683.6,3.72633]
[1739652394519,5.1808,2683.7,2683.5,3.72645]
[1739652394850,5.1808,2683.7,2683.6,0.4986923]
[1739652395611,5.1808,2683.7,2683.4,1.18256645]
[1739652395804,5.1808,2683.7,2683.5,3.72644]
[1739652396205,5.1808,2683.7,2683.4,1.18256645]
[1739652396818,5.1808,2683.7,2683.4,0.72919345]
[1739652397430,5.1808,2683.7,2683.3,3.72664]
[1739652397820,5.1808,2683.7,2683.4,3.72659]
[1739652398408,5.1808,2683.7,2683.3,3.72664]
[1739652399342,5.1808,2683.7,2683.4,3.72651]
[1739652399646,5.1808,2683.7,2683.3,3.72664]
[1739652400003,5.1808,2683.7,2683.4,3.72652]
[1739652400908,5.1808,2683.7,2683.5,3.72637]
[1739652401110,5.1808,2683.7,2683.5,3.72639]
[1739652401347,5.1808,2683.7,2683.5,4.099029]
[1739652403447,5.1808,2683.7,2683.3,3.72665]
[1739652403956,5.1808,2683.7,2683.4,3.72657]
[1739652404528,5.1808,2683.7,2683.2,5.27627543]
[1739652404734,0.7866,2683.6,2683.2,4.46917543]
[1739652404933,0.7866,2683.6,2683.3,3.72675]
[1739652405234,5.1808,2683.7,2683.5,3.72647]
[1739652405435,5.1808,2683.7,2683.4,3.72661]
[1739652406258,5.1808,2683.7,2683.5,3.72643]
[1739652406442,5.1808,2683.7,2683.4,3.72661]
[1739652406649,5.1808,2683.7,2683.6,3.72633]
[1739652406851,5.1808,2683.7,2683.5,3.72647]
[1739652407399,5.1808,2683.7,2683.5,0.908722]
[1739652407549,5.1808,2683.7,2683.6,3.72633]
[1739652407928,5.1808,2683.7,2683.5,3.72647]
[1739652408342,5.1808,2683.7,2683.6,3.72633]
[1739652409032,5.9613,2684.0,2683.3,4.49605]
[1739652409364,9.68708,2684.0,2683.5,3.72638]
[1739652410361,9.68708,2684.0,2683.3,4.49606]
[1739652410659,9.68708,2684.0,2683.5,3.72645]
[1739652411258,5.9613,2684.0,2683.6,3.72623]
[1739652411765,5.9613,2684.0,2683.7,3.72609]
[1739652411968,5.9613,2684.0,2683.8,3.72605]
[1739652412538,5.1808,2684.0,2683.5,0.7694]
[1739652412737,5.1808,2684.0,2683.7,3.72613]
[1739652412938,5.1808,2684.0,2683.8,3.72605]
[1739652413561,5.1808,2684.0,2683.7,3.72609]
[1739652413761,5.1808,2684.0,2683.8,0.745234]
[1739652414075,5.1808,2684.0,2683.8,4.471274]
[1739652414269,0.7805,2684.2,2683.8,4.471274]
[1739652414751,0.7805,2684.2,2683.8,3.72596]
[1739652415072,0.7805,2684.2,2683.8,3.72595]
[1739652415379,0.7805,2684.5,2684.0,3.72567]
[1739652415669,0.7805,2684.5,2683.9,3.72592]
[1739652415868,0.7805,2684.5,2683.7,3.72611]
[1739652415869,4.50594,2684.3,2683.7,7.45222]
[1739652416176,0.7805,2684.1,2683.7,0.822162]
[1739652416362,0.7805,2684.0,2683.3,3.72668]
[1739652416539,3.72599,2683.9,2683.3,3.72668]
[1739652416739,3.72599,2683.9,2683.3,7.45335]
[1739652417868,3.72599,2683.9,2683.4,3.72652]
[1739652418236,3.0,2683.9,2683.5,3.72646]
[1739652418455,3.7805,2684.0,2683.5,3.72646]
[1739652419470,7.50628,2684.0,2683.5,3.72646]
[1739652419773,9.147559,2684.0,2683.5,3.72646]
[1739652420878,14.328359,2684.0,2683.4,3.72656]
[1739652421176,3.72597,2683.9,2683.4,3.72657]
[1739652421342,3.72597,2683.9,2683.3,3.72667]
[1739652421744,3.76387637,2683.9,2683.3,3.72667]
[1739652421968,3.72597,2683.9,2683.3,7.45334]
[1739652422677,3.72597,2683.9,2683.4,3.7266]
[1739652422972,4.26074506,2683.9,2683.4,3.7266]
[1739652424281,0.53477506,2683.9,2683.3,3.72667]
[1739652424445,4.26070506,2683.9,2683.3,7.45333]
[1739652424782,4.26070506,2683.9,2683.4,3.72653]
[1739652425354,3.72607,2683.8,2683.3,3.72666]
[1739652425557,3.72593,2683.9,2683.3,3.72666]
[1739652425768,3.76383637,2683.9,2683.3,3.72666]
[1739652425944,3.76383637,2683.9,2683.3,7.45334]
[1739652426148,3.72593,2683.9,2683.3,7.45334]
[1739652426860,5.1808,2683.9,2683.2,1.51180543]
[1739652427046,8.1808,2683.9,2683.5,3.72637]
[1739652427651,11.90676,2683.9,2683.3,3.72665]
[1739652428087,11.90676,2683.9,2683.4,3.7266]
[1739652429923,2.238,2683.8,2683.4,3.7266]
[1739652430091,11.90676,2683.9,2683.4,3.7266]
[1739652430389,13.548067,2683.9,2683.4,3.7266]
[1739652430792,3.76400637,2683.8,2683.2,5.23857543]
[1739652431104,11.90676,2683.9,2683.2,5.23857543]
[1739652431463,11.90676,2683.9,2683.4,3.72654]
[1739652431885,8.1808,2683.9,2683.5,3.72641]
[1739652432084,8.1808,2683.9,2683.4,3.7266]
[1739652432279,8.1808,2683.9,2683.5,3.72647]
[1739652433172,8.1808,2683.9,2683.2,1.51180543]
[1739652433173,5.1808,2683.9,2683.2,1.51180543]
[1739652433394,5.1808,2683.9,2683.5,3.72637]
[1739652433997,5.1808,2683.9,2683.5,7.45276]
[1739652434694,5.1808,2683.9,2683.5,3.72637]
[1739652435286,5.1808,2683.9,2683.5,7.45277]
[1739652435486,5.1808,2683.9,2683.5,3.72637]
[1739652438395,5.1808,2683.9,2683.3,3.72672]
[1739652438601,5.1808,2683.9,2683.3,3.72664]
[1739652438803,3.72607,2683.8,2683.3,7.45331]
[1739652439478,3.72607,2683.8,2683.3,3.72664]
[1739652439690,3.72607,2683.8,2683.3,7.45332]
[1739652439890,3.72607,2683.8,2683.3,3.72664]
[1739652440091,8.90678,2683.9,2683.4,3.7266]
[1739652442700,5.1808,2683.9,2683.4,3.7266]
[1739652442909,5.1808,2683.9,2683.4,3.72654]
[1739652444003,8.90676,2683.9,2683.4,3.72654]
[1739652444203,5.1808,2683.9,2683.3,4.25048454]
[1739652444401,3.72608,2683.8,2683.3,4.25048454]
[1739652444605,3.72608,2683.8,2683.3,7.97716454]
[1739652444942,3.72608,2683.8,2683.4,3.7266]
[1739652445627,0.8098,2683.7,2683.3,4.25048454]
[1739652446393,0.8098,2683.7,2683.3,3.72664]
[1739652448524,3.76425637,2683.6,2683.1,3.72698]
[1739652448730,0.03790637,2683.5,2682.9,4.5398]
[1739652448892,0.8098,2683.4,2682.9,4.53977]
[1739652449083,0.8098,2683.4,2683.0,3.72714]
[1739652449789,0.8098,2683.4,2683.0,3.72715]
[1739652450433,0.8098,2683.4,2683.0,3.72705]
[1739652450636,0.8098,2683.4,2683.0,4.1024878]
[1739652451087,0.8098,2683.4,2683.0,7.8295678]
[1739652451290,0.8098,2683.4,2683.0,4.45478215]
[1739652454113,0.8098,2683.4,2683.2,3.7268]
[1739652454416,5.1808,2683.7,2683.5,3.7264]
[1739652456922,5.1808,2683.7,2683.4,4.50789]
[1739652457223,5.1808,2683.7,2683.6,3.72633]
[1739652458205,5.1808,2683.7,2683.5,3.72634]
[1739652459089,5.1808,2683.7,2683.4,4.50794]
[1739652459318,5.1808,2683.7,2683.4,5.47319078]
[1739652460221,5.1808,2683.7,2683.4,0.96525078]
[1739652460413,5.1808,2683.7,2683.3,7.45329]
[1739652460722,5.1808,2683.7,2683.3,3.72663]
[1739652460928,5.1808,2683.7,2683.3,7.4533]
[1739652462193,5.1808,2683.7,2683.3,3.72663]
[1739652462391,5.1808,2683.7,2683.2,0.7814]
[1739652462709,0.7513,2683.6,2683.3,3.72665]
[1739652462910,4.47765,2683.6,2683.1,3.72693]
[1739652463327,8.20406,2683.6,2683.1,3.72693]
[1739652463627,3.7265,2683.5,2683.0,1.50913215]
[1739652463837,0.7513,2683.4,2683.0,0.72773215]
[1739652464334,0.7513,2683.4,2683.0,4.45480215]
[1739652464537,0.7513,2683.4,2683.0,5.49293114]
[1739652464840,0.7513,2684.0,2683.3,5.14461775]
[1739652465133,0.7513,2684.0,2683.8,3.72604]
[1739652465430,0.7513,2684.0,2683.6,0.7814]
[1739652465622,0.7513,2684.0,2683.6,4.50762]
[1739652465817,0.7513,2684.0,2683.7,3.72617]
[1739652466338,0.7513,2684.0,2683.8,3.72595]
[1739652466537,5.14307775,2684.5,2684.0,3.7257]
[1739652466538,0.816,2684.5,2684.0,3.7257]
[1739652466920,3.816,2684.5,2684.0,3.7257]
[1739652467639,7.54109,2684.5,2683.9,7.45176]
[1739652467797,3.816,2684.5,2684.1,3.72563]
[1739652468138,0.816,2684.5,2684.1,3.72554]
[1739652469115,0.816,2684.5,2684.0,4.51547]
[1739652470337,0.816,2684.5,2684.1,3.72561]
[1739652471040,0.816,2684.5,2684.0,0.7898]
[1739652471041,0.816,2684.5,2684.2,3.72542]
[1739652471342,5.1808,2684.4,2684.2,3.72542]
[1739652472338,5.1808,2684.4,2684.2,7.902362]
[1739652472734,5.1808,2684.4,2684.2,4.176942]
[1739652472916,5.1808,2684.4,2684.2,7.902362]
[1739652473116,5.1808,2684.4,2684.2,4.176942]
[1739652473320,5.1808,2684.4,2684.2,3.72542]
[1739652473519,5.1808,2684.4,2684.2,3.7254]
[1739652473729,5.1808,2684.4,2684.2,7.45081]
[1739652474045,5.1808,2684.4,2684.2,3.7254]
[1739652474226,5.1808,2684.4,2684.2,7.45081]
[1739652474542,5.1808,2684.4,2684.2,3.7254]
[1739652476549,6.11838637,2684.4,2684.0,3.72569]
[1739652476718,0.816,2684.3,2683.8,4.48506224]
[1739652476923,0.816,2684.3,2684.0,3.72577]
[1739652477435,5.9968,2684.3,2684.0,3.72577]
[1739652479155,5.9968,2684.3,2684.0,3.72568]
[1739652480012,5.9968,2684.3,2683.9,3.72583]
[1739652480747,0.8322,2684.0,2683.6,3.72625]
[1739652481424,0.8322,2684.0,2683.5,3.72635]
[1739652481633,0.8322,2684.0,2683.6,3.72625]
[1739652482126,0.03790637,2683.9,2683.5,3.72635]
[1739652482320,5.21870637,2683.9,2683.5,3.72635]
[1739652482514,6.05003943,2683.9,2683.5,3.72635]
[1739652484448,0.8322,2683.6,2683.1,3.72695]
[1739652484651,0.03790637,2683.5,2683.1,3.72695]
[1739652484827,6.013,2683.6,2683.1,7.45388]
[1739652485028,6.013,2683.6,2683.1,3.72693]
[1739652485343,6.013,2683.6,2682.9,12.09023]
[1739652485344,7.55872,2683.5,2682.9,12.09023]
[1739652485555,4.5589,2683.4,2682.9,12.09023]
[1739652486109,3.72706,2683.1,2682.5,3.72778]
[1739652486417,0.8322,2683.0,2682.5,3.72778]
[1739652486612,3.8322,2683.0,2682.3,3.72809]
[1739652486824,0.8322,2682.7,2682.3,3.72809]
[1739652487227,0.03790637,2682.6,2682.3,3.72809]
[1739652487433,0.8322,2682.7,2682.2,4.6288]
[1739652487840,3.0,2682.6,2682.2,4.6288]
[1739652489573,0.8322,2682.5,2682.2,4.6288]
[1739652489715,5.1808,2682.4,2682.2,4.6288]
[1739652490672,5.1808,2682.4,2682.2,8.35707]
[1739652491325,5.1808,2682.4,2682.2,4.6288]
[1739652500461,5.1808,2682.4,2682.2,8.35704]
[1739652502234,5.1808,2682.4,2682.3,3.72814]
[1739652502850,5.1808,2682.4,2682.3,4.51854]
[1739652503141,5.1808,2682.4,2682.3,5.806598]
[1739652503848,5.948,2682.4,2682.2,4.6288]
[1739652510244,9.67601,2682.4,2682.2,4.6288]
[1739652512505,3.72814,2682.3,2682.2,4.6288]
[1739652512672,5.948,2682.4,2682.2,4.6288]
[1739652512851,9.67607,2682.4,2682.2,4.6288]
[1739652513883,7.288394,2682.4,2682.2,4.6288]
[1739652514244,11.016404,2682.4,2682.2,4.6288]
[1739652515478,7.288394,2682.4,2682.2,4.6288]
[1739652515686,5.948,2682.4,2682.2,4.6288]
[1739652515846,9.67608,2682.4,2682.2,4.6288]
[1739652516585,5.948,2682.4,2682.2,4.6288]
[1739652516767,9.67602,2682.4,2682.2,4.6288]
[1739652518589,5.948,2682.4,2682.2,4.6288]
[1739652519585,9.6761,2682.4,2682.2,4.6288]
[1739652519764,4.58714637,2682.3,2682.2,4.6288]
[1739652520089,10.97213594,2682.3,2682.2,2.76466]
[1739652520289,13.17222957,2682.3,2682.2,2.76466]
[1739652520480,14.00792063,2682.3,2682.2,2.76466]
[1739652520863,14.00792063,2682.3,2682.2,0.90052]
[1739652521156,3.55,2682.2,2682.1,5.3e-06]
[1739652521360,3.55,2682.2,2680.5,4.50106]
[1739652521361,3.72989,2681.1,2680.5,4.50106]
[1739652521580,3.73016,2680.9,2680.5,0.7705]
[1739652521782,3.72986,2681.1,2680.4,3.73074]
[1739652522059,7.42357594,2681.3,2680.4,3.73076]
[1739652522060,6.72971,2681.2,2680.4,3.73076]
[1739652522259,6.72971,2681.2,2680.2,1.52829955]
[1739652522260,3.0,2681.2,2680.2,1.52829955]
[1739652522460,7.45985,2681.1,2680.3,3.73082]
[1739652522687,3.72992,2681.1,2680.4,4.25663196]
[1739652523090,3.0,2681.2,2680.5,3.73064]
[1739652523268,3.0,2681.2,2680.6,3.73047]
[1739652523474,3.0,2681.2,2680.5,3.73064]
[1739652523475,3.266,2681.2,2680.5,3.73064]
[1739652523672,6.99572,2681.2,2680.5,3.73055]
[1739652524070,3.266,2681.2,2680.5,3.73055]
[1739652524282,6.99574,2681.2,2680.5,4.5292842]
[1739652524470,3.72982,2681.1,2680.5,0.7987342]
[1739652525061,3.266,2681.2,2680.5,4.5293642]
[1739652525276,3.266,2681.2,2680.6,3.73038]
[1739652525581,3.266,2681.2,2680.5,4.5293642]
[1739652525788,0.03790637,2681.1,2680.5,4.5293642]
[1739652526094,0.03790637,2681.1,2680.6,3.73042]
[1739652526595,0.03790637,2681.1,2680.2,1.52829955]
[1739652526596,3.817,2680.9,2680.2,1.52829955]
[1739652526783,0.817,2680.8,2680.0,2.98020517]
[1739652526984,3.0,2680.9,2680.5,3.73063]
[1739652527291,5.1808,2681.0,2680.3,3.73083]
[1739652527508,5.1808,2681.0,2680.4,3.73069]
[1739652527793,5.1808,2681.0,2680.5,3.7306]
[1739652527994,5.1808,2681.0,2680.6,3.73039]
[1739652528192,5.1808,2681.0,2680.7,3.73036]
[1739652528394,5.1808,2681.0,2680.5,7.46116]
[1739652528695,5.1808,2681.0,2680.6,3.73048]
[1739652529202,0.03790637,2680.9,2680.4,3.73076]
[1739652529411,5.73570336,2681.0,2680.4,3.73069]
[1739652529586,5.1808,2681.0,2680.7,3.73027]
[1739652529896,5.1808,2681.0,2680.9,3.73009]
[1739652530205,5.1808,2681.0,2680.9,5.25262]
[1739652530367,5.1808,2681.5,2681.4,3.72939]
[1739652531092,5.1808,2681.5,2681.4,4.50589]
[1739652535970,5.1808,2682.1,2682.0,3.72856]
[1739652539986,5.1808,2682.1,2681.6,3.72903]
[1739652539987,0.817,2682.0,2681.6,3.72903]
[1739652540185,0.817,2682.0,2681.8,3.72882]
[1739652540391,0.817,2682.0,2681.8,7.45756]
[1739652540712,5.1808,2682.1,2682.0,3.72856]
[1739652545397,5.1808,2682.1,2682.0,4.52466]
[1739652545583,3.0,2682.7,2682.0,0.7961]
[1739652545784,5.1808,2682.6,2682.4,3.72796]
[1739652546399,5.1808,2682.6,2682.0,4.52454]
[1739652546598,5.1808,2682.6,2682.5,3.72786]
[1739652547424,5.1808,2682.6,2682.4,3.72797]
[1739652547607,5.1808,2682.6,2682.5,3.72786]
[1739652549089,0.7778,2682.9,2682.6,3.72761]
[1739652549399,5.9586,2682.9,2682.6,3.72761]
[1739652551022,5.9586,2682.9,2682.7,3.72747]
[1739652551236,5.1808,2682.9,2682.8,3.72744]
[1739652554607,5.1808,2682.9,2682.6,3.72769]
[1739652555823,0.86250637,2682.8,2682.5,3.72777]
[1739652557126,0.03790637,2682.8,2682.5,3.72777]
[1739652557332,5.1808,2682.9,2682.6,3.72765]
[1739652557696,5.1808,2682.9,2682.7,3.72751]
[1739652557927,5.1808,2682.9,2682.8,3.72744]
[1739652560528,5.1808,2682.9,2682.7,4.54711]
[1739652560711,5.1808,2682.9,2682.7,3.72751]
[1739652561227,5.1808,2682.9,2682.8,3.72744]
[1739652562331,5.1808,2682.9,2682.8,4.54704]
[1739652562637,5.1808,2682.9,2682.8,5.23575782]
[1739652563399,5.1808,2682.9,2682.8,4.54704]
[1739652564933,5.1808,2682.9,2682.8,3.72744]
[1739652567646,5.1808,2682.9,2682.6,4.5473]
[1739652567809,6.0054,2682.9,2682.6,3.7276]
[1739652568414,6.0054,2682.9,2682.4,4.5475]
[1739652568702,0.60433064,2682.8,2682.5,3.72778]
[1739652569531,0.60433064,2682.8,2682.4,3.7279]
[1739652570613,0.60433064,2682.8,2682.5,3.72778]
[1739652573243,0.60433064,2682.8,2682.4,3.7279]
[1739652573938,0.60433064,2682.8,2682.4,7.45581]
[1739652574306,0.60433064,2682.8,2682.4,3.7279]
[1739652574844,0.60433064,2682.8,2682.5,3.72786]
[1739652575051,0.60433064,2682.8,2682.6,3.72771]
[1739652575966,0.60433064,2682.8,2682.4,3.7279]
[1739652575967,0.64223701,2682.8,2682.4,3.7279]
[1739652576145,0.64223701,2682.8,2682.4,7.45582]
[1739652577031,0.64223701,2682.8,2682.4,3.7279]
[1739652577349,1.0374957,2682.7,2682.4,3.7279]
[1739652578351,1.0374957,2682.7,2682.3,3.72814]
[1739652578564,0.8057,2682.6,2682.2,3.72818]
[1739652579161,0.8057,2682.6,2682.2,7.45638]
[1739652579656,0.8057,2682.6,2682.2,3.72818]
[1739652579857,1.33992772,2682.6,2682.3,3.7281]
[1739652580103,0.53422772,2682.6,2682.4,3.72796]
[1739652580356,1.0374957,2682.7,2682.4,3.72796]
[1739652581255,6.2182957,2682.7,2682.4,3.72796]
[1739652581762,6.2182957,2682.7,2682.2,4.48588]
[1739652581941,6.2182957,2682.7,2682.3,3.72813]
[1739652582259,0.8057,2682.6,2682.3,3.72813]
[1739652582446,1.88085057,2682.6,2682.3,3.72813]
[1739652584570,0.8057,2682.6,2682.3,3.72813]
[1739652584745,0.8057,2682.6,2682.4,3.7279]
[1739652585650,0.8057,2682.6,2682.1,4.48623749]
[1739652586258,0.8057,2682.6,2682.3,3.72813]
[1739652587272,5.9865,2682.6,2682.3,3.72813]
[1739652587871,5.9865,2682.6,2682.3,3.72806]
[1739652590081,0.59865,2682.5,2682.1,4.48624749]
[1739652590440,0.59865,2682.5,2682.1,8.21457749]
[1739652590643,0.59865,2682.5,2682.1,7.45666]
[1739652590873,0.59865,2682.5,2682.1,3.72833]
[1739652591641,0.59865,2682.5,2682.1,3.72832]
[1739652592472,5.77945,2682.5,2682.1,3.72832]
[1739652593673,5.77945,2682.5,2682.2,3.72825]
[1739652594188,5.77945,2682.5,2682.3,3.72805]
[1739652594539,5.77945,2682.5,2682.2,3.72827]
[1739652596447,0.658515,2682.4,2682.1,3.72833]
[1739652598882,0.658515,2682.4,2682.1,3.72832]
[1739652599869,0.8032,2682.3,2681.8,4.48095]
[1739652600070,6.02190637,2682.3,2681.9,3.72868]
[1739652600253,6.94079543,2682.3,2681.9,3.72868]
[1739652600453,6.90288906,2682.3,2681.9,3.72868]
[1739652600649,6.94079543,2682.3,2681.9,3.72868]
[1739652600858,6.78775,2682.2,2681.6,3.72903]
[1739652601051,0.8214,2682.1,2681.5,3.72915]
[1739652601287,0.8214,2681.9,2681.5,3.72915]
[1739652601785,0.8214,2681.9,2681.3,16.60206]
[1739652601968,4.55017,2681.9,2681.3,12.87261]
[1739652602165,5.1808,2681.8,2681.3,13.63027049]
[1739652602493,5.1808,2681.8,2681.3,12.09541]
[1739652602793,0.658515,2681.7,2681.3,15.82486]
[1739652603159,0.658515,2681.7,2681.3,15.82487]
[1739652603562,0.658515,2681.7,2681.3,12.09541]
[1739652604588,0.8214,2681.6,2681.3,8.366]
[1739652608162,6.0022,2681.6,2681.3,8.366]
[1739652609765,6.0022,2681.6,2681.4,3.72935]
[1739652609965,6.0022,2681.6,2681.4,7.45867]
[1739652610199,6.0022,2681.6,2681.4,7.45863]
[1739652610694,6.0022,2681.6,2681.4,3.72931]
[1739652611572,5.1808,2681.6,2681.5,3.72925]
[1739652611774,5.1808,2681.6,2681.4,3.72931]
[1739652612297,5.1808,2681.6,2681.4,3.72929]
[1739652612496,5.1808,2681.6,2681.5,4.50645]
[1739652612864,5.1808,2682.4,2682.0,4.50568]
[1739652613786,5.1808,2682.4,2682.0,4.50566]
[1739652613994,5.1808,2682.4,2682.0,8.23414]
[1739652614497,5.1808,2682.4,2682.0,4.50566]
[1739652614705,5.1808,2682.4,2682.0,0.7772]
[1739652615201,5.1808,2682.4,2682.1,3.72842]
[1739652617798,5.1808,2682.4,2682.0,0.7772]
[1739652617971,5.21870637,2682.4,2682.0,4.50574]
[1739652618167,5.1808,2682.4,2682.0,4.50574]
[1739652619100,0.03790637,2682.3,2681.9,3.72862]
[1739652619308,4.51759,2682.2,2681.7,3.72884]
[1739652619514,0.03790637,2682.1,2681.7,3.72884]
[1739652619799,0.03790637,2682.1,2681.6,3.72907]
[1739652620005,5.1808,2682.0,2681.5,3.72916]
[1739652620187,5.1808,2682.0,2681.5,4.4884488]
[1739652620389,5.1808,2682.0,2681.7,7.45792]
[1739652621277,5.1808,2682.0,2681.7,3.72884]
[1739652621580,5.1808,2682.0,2681.4,0.776]
[1739652621581,5.1808,2682.0,2681.6,3.72906]
[1739652621780,5.9492,2682.0,2681.8,3.72883]
[1739652622692,5.9492,2682.0,2681.7,3.72894]
[1739652624105,9.67776,2682.0,2681.4,0.776]
[1739652624401,0.7684,2681.9,2681.5,3.72916]
[1739652624602,1.736176,2681.9,2681.5,3.72916]
[1739652624804,1.736176,2681.9,2681.3,8.366]
[1739652625011,4.49727,2681.8,2681.3,12.09543]
[1739652625309,0.03790637,2681.7,2681.3,12.09543]
[1739652625610,0.7684,2681.8,2681.4,3.72937]
[1739652626306,0.7684,2681.8,2681.4,3.72931]
[1739652627878,0.7684,2681.2,2681.1,0.74664936]
[1739652628082,3.0064,2681.2,2680.4,4.5067]
[1739652628289,6.73615,2681.2,2680.6,3.7304]
[1739652628496,7.409745,2681.2,2680.6,3.7304]
[1739652628814,3.72984,2681.1,2680.5,3.73062]
[1739652628995,3.72984,2681.1,2680.4,4.5067]
[1739652629195,3.72996,2681.0,2680.4,5.25461727]
[1739652629403,3.72996,2681.0,2680.4,8.98530727]
[1739652629609,3.72984,2681.1,2680.4,5.25460727]
[1739652629815,4.50872987,2681.1,2680.5,3.73055]
[1739652630035,8.23863987,2681.1,2680.5,3.73055]
[1739652630186,8.2007335,2681.1,2680.5,3.73055]
[1739652630513,8.2007335,2681.1,2680.4,5.25460727]
[1739652630514,0.03790637,2681.0,2680.6,3.7305]
[1739652632681,0.03790637,2681.0,2680.4,8.98526727]
[1739652633009,0.03790637,2681.0,2680.5,3.73064]
[1739652633696,0.08790637,2681.0,2680.5,3.73064]
[1739652634621,0.05,2681.0,2680.5,3.73064]
[1739652635207,0.08790637,2681.0,2680.5,3.73064]
[1739652635913,5.21870637,2681.0,2680.6,3.68048]
[1739652636115,10.36753136,2681.0,2680.4,4.50666]
[1739652636308,10.32962499,2681.0,2680.4,8.23735]
[1739652636510,0.03790637,2680.9,2680.4,8.23735]
[1739652637090,4.48722,2680.8,2680.3,0.72786013]
[1739652637287,4.48722,2680.8,2680.0,0.1452156]
[1739652637288,0.7569,2680.4,2680.0,0.1452156]
[1739652637497,5.9377,2680.4,2680.0,0.1452156]
[1739652638788,5.9377,2680.4,2680.0,3.8765256]
[1739652639707,5.9377,2680.4,2680.0,0.1452156]
[1739652639911,7.277604,2680.4,2680.0,0.1452156]
[1739652642427,5.1808,2680.4,2680.3,3.73092]
[1739652642723,5.1808,2680.4,2680.2,4.53523]
[1739652644225,5.1808,2680.4,2680.2,3.73093]
[1739652645521,5.1808,2680.4,2680.0,3.8764656]
[1739652645723,5.1808,2680.4,2680.0,0.1452156]
[1739652646023,0.7936,2680.3,2680.0,0.1452156]
[1739652646613,9.70542,2680.3,2680.0,0.1452156]
[1739652649295,5.9744,2680.3,2680.0,0.1452156]
[1739652649522,5.9744,2680.3,2680.0,3.8765456]
[1739652649931,5.9744,2680.3,2680.0,0.1452156]
[1739652650335,0.8057,2680.1,2680.0,0.1452156]
[1739652650918,5.1808,2680.3,2680.0,0.1452156]
[1739652651120,5.1808,2680.3,2680.1,3.73116]
[1739652651450,5.1808,2680.3,2680.0,3.8765056]
[1739652652046,5.1808,2680.3,2680.1,3.73118]
[1739652652250,5.1808,2680.3,2680.0,0.1452156]
[1739652656828,0.03790637,2680.2,2680.0,0.1452156]
[1739652657027,0.8057,2680.1,2680.0,0.1452156]
[1739652659854,5.9865,2680.3,2680.0,3.8765556]
[1739652660352,5.9865,2680.3,2680.0,0.1452156]
[1739652660658,0.88214896,2680.2,2680.0,0.1452156]
[1739652660827,0.88214896,2680.2,2680.0,3.8765456]
[1739652661030,5.1808,2680.3,2680.2,3.73106]
[1739652662425,0.8101,2680.9,2680.5,3.73055]
[1739652662625,4.54021,2680.9,2680.3,7.46172]
[1739652662851,0.972101,2680.8,2680.4,3.73077]
[1739652663060,0.03790637,2680.7,2680.4,3.73077]
[1739652663239,0.03790637,2680.7,2680.3,3.7308]
[1739652663849,0.8101,2680.6,2680.1,3.73111]
[1739652664025,0.49574601,2680.5,2680.0,0.1452156]
[1739652664354,0.45783964,2680.5,2680.1,3.73112]
[1739652666064,0.45783964,2680.5,2680.0,7.6077556]
[1739652666271,0.45783964,2680.5,2680.1,3.73119]
[1739652666428,0.03790637,2680.4,2680.1,3.73119]
[1739652666630,0.8101,2680.3,2680.0,0.1452156]
[1739652667038,0.8101,2680.3,2680.0,3.8764356]
[1739652668441,0.8101,2680.3,2680.1,3.73117]
[1739652668941,5.1808,2680.5,2680.1,3.73117]
[1739652669160,5.1808,2680.5,2680.2,3.73094]
[1739652669333,5.1808,2680.5,2680.1,3.73117]
[1739652669533,5.1808,2680.5,2680.3,3.7309]
[1739652670660,5.77989,2680.5,2680.1,7.46224]
[1739652670852,0.03790637,2680.4,2680.1,3.73107]
[1739652671037,4.5409,2680.4,2680.0,0.1452156]
[1739652673870,0.658999,2680.3,2680.0,0.1452156]
[1739652674852,0.658999,2680.3,2680.0,3.8764856]
[1739652676372,5.839799,2680.3,2680.0,3.8764856]
[1739652677172,5.839799,2680.3,2680.0,3.8764756]
[1739652679862,5.839799,2680.3,2680.0,3.8764656]
[1739652680538,5.1808,2680.3,2680.2,3.73106]
[1739652682372,5.1808,2680.7,2680.1,4.4869]
[1739652682556,5.1808,2680.7,2680.5,3.73059]
[1739652683743,5.1808,2680.7,2680.4,3.73073]
[1739652683955,6.295697,2680.7,2680.4,3.73073]
[1739652685648,0.82840637,2680.6,2680.3,3.73084]
[1739652687077,0.82840637,2680.6,2680.1,4.48681]
[1739652687275,0.82840637,2680.6,2680.1,3.73111]
[1739652687457,3.06640637,2680.6,2680.1,3.73111]
[1739652687645,3.29915706,2680.5,2680.1,3.73111]
[1739652687845,7.02982706,2680.5,2680.0,3.8765456]
[1739652688280,5.1808,2680.4,2680.0,3.8765456]
[1739652688482,5.1808,2680.4,2680.0,0.1452156]
[1739652688483,5.21870637,2680.4,2680.0,0.1452156]
[1739652688655,1.114897,2680.3,2680.0,3.8765356]
[1739652688996,1.114897,2680.3,2680.1,3.73109]
[1739652689155,5.1808,2680.4,2680.1,3.73109]
[1739652691976,5.1808,2680.4,2680.1,7.4622]
[1739652692276,5.1808,2680.4,2680.2,3.73097]
[1739652693588,5.1808,2680.4,2680.0,0.1452156]
[1739652693762,5.1808,2680.4,2680.0,3.8764156]
[1739652693955,5.1808,2680.4,2680.1,3.73118]
[1739652695793,5.1808,2680.4,2680.0,0.1452156]
[1739652695973,0.03790637,2680.3,2680.0,3.8765556]
[1739652696290,6.41268737,2680.4,2680.0,3.8765556]
[1739652696694,0.8102,2680.3,2680.0,0.1452156]
[1739652698097,3.73115,2680.2,2680.0,0.1452156]
[1739652698297,6.647135,2680.1,2680.0,0.1452156]
[1739652698763,2.915935,2680.1,2680.0,0.1452156]